bitfinex/quotes_SOLUSD_20250529
["timestamp","ask_amount","ask_price","bid_price","bid_amount"]
[1748488995380,82.91052454,174.1,174.08,12.07371983]
[1748488995977,82.91052454,174.1,174.04,50.39538773]
[1748488996276,82.91052454,174.1,174.07,12.07371983]
[1748488996471,82.91052454,174.1,174.08,12.07371983]
[1748488996472,77.16666667,174.1,174.08,12.07371983]
[1748488996670,82.91051532,174.1,174.08,12.07371983]
[1748488996878,82.91051532,174.1,174.07,12.07371983]
[1748488998265,82.91051532,174.1,174.05,9.94]
[1748488998469,82.91051532,174.1,174.05,22.01371983]
[1748488999081,77.16666667,174.09,174.06,12.07371983]
[1748489001279,82.91097533,174.09,174.06,12.07371983]
[1748489001675,82.91097533,174.09,174.05,22.01371983]
[1748489003561,119.45097533,174.09,174.05,22.01371983]
[1748489004567,12.07371983,174.07,174.02,12.07371983]
[1748489004871,36.52,174.06,174.01,38.07371983]
[1748489005059,36.52,174.06,174.03,12.07371983]
[1748489005678,5.74547543,174.05,174.03,12.07371983]
[1748489005989,5.74547543,174.05,174.02,12.07371983]
[1748489008188,42.2652443,174.06,174.02,12.07371983]
[1748489008684,42.2652443,174.06,174.01,26.0]
[1748489008883,42.2652443,174.06,174.03,12.07371983]
[1748489010090,42.2652443,174.06,174.01,26.0]
[1748489010091,42.2652443,174.06,174.02,12.07371983]
[1748489010795,77.16666667,174.05,174.02,12.07371983]
[1748489011005,77.16666667,174.05,174.04,12.07371983]
[1748489011463,36.52,174.08,174.04,12.07371983]
[1748489011662,82.91088345,174.09,174.05,12.07371983]
[1748489011869,119.43088345,174.09,174.06,12.07371983]
[1748489012407,131.50460328,174.09,174.04,12.07371983]
[1748489013103,89.2403865,174.08,174.03,12.07371983]
[1748489013623,77.16666667,174.08,174.04,12.07371983]
[1748489014407,89.2403865,174.08,174.03,12.07371983]
[1748489015269,5.7448153,174.07,174.03,12.07371983]
[1748489015986,5.7448153,174.07,174.0,35.94]
[1748489015987,12.07371983,174.06,174.0,35.94]
[1748489016189,12.07371983,174.05,174.0,22.01371983]
[1748489016563,12.07371983,174.05,174.0,9.94]
[1748489016770,12.07371983,174.05,174.0,22.01371983]
[1748489017070,48.59371983,174.06,174.01,12.07371983]
[1748489017278,5.74547543,174.05,174.01,12.07371983]
[1748489017486,36.52,174.06,174.03,12.07371983]
[1748489018378,36.52,174.06,174.04,12.07371983]
[1748489018577,77.16666667,174.05,174.04,12.07371983]
[1748489020778,77.16666667,174.05,174.03,12.07371983]
[1748489022794,77.16666667,174.05,174.04,12.07371983]
[1748489028707,77.16666667,174.07,174.04,12.07371983]
[1748489032602,77.16666667,174.07,174.03,5.74611291]
[1748489032603,77.16666667,174.07,174.05,12.07371983]
[1748489035911,77.16666667,174.07,174.04,12.07371983]
[1748489036288,82.91155777,174.07,174.03,9.92]
[1748489036497,82.91155777,174.07,174.03,21.99371983]
[1748489037416,82.91155777,174.07,174.04,12.07371983]
[1748489037589,77.16666667,174.07,174.04,12.07371983]
[1748489037792,82.91151503,174.07,174.05,12.07371983]
[1748489038094,82.91151503,174.07,174.04,12.07371983]
[1748489038294,77.16666667,174.07,174.05,12.07371983]
[1748489038899,77.16666667,174.07,174.04,12.07371983]
[1748489039597,82.91154356,174.07,174.04,12.07371983]
[1748489040413,77.16666667,174.06,174.04,12.07371983]
[1748489040716,82.91190312,174.06,174.03,21.99371983]
[1748489040921,82.91190312,174.06,174.02,12.07371983]
[1748489041099,119.41190312,174.06,174.02,12.07371983]
[1748489041692,119.41190312,174.06,174.03,12.07371983]
[1748489042802,82.91190312,174.06,174.03,12.07371983]
[1748489043002,119.41190312,174.06,174.03,12.07371983]
[1748489043716,119.41190312,174.06,174.02,12.07371983]
[1748489044118,131.48562295,174.06,174.01,47.97371983]
[1748489044293,12.07371983,174.05,174.01,35.9]
[1748489044707,5.74580556,174.04,174.01,35.9]
[1748489046396,125.7403865,174.06,174.01,35.9]
[1748489046397,77.16666667,174.03,174.01,35.9]
[1748489049415,77.16666667,174.03,174.01,47.97371983]
[1748489052111,77.16666667,174.03,174.02,12.07371983]
[1748489053524,77.16666667,174.03,174.01,47.97371983]
[1748489054829,77.16666667,174.03,174.02,12.07371983]
[1748489057833,77.16666667,174.03,174.01,47.97371983]
[1748489059623,77.16666667,174.03,174.02,12.07371983]
[1748489060537,77.16666667,174.03,174.02,30.72336869]
[1748489060745,36.48,174.08,174.03,18.64964886]
[1748489060922,36.48,174.08,174.05,12.07371983]
[1748489061842,36.48,174.08,174.04,12.07371983]
[1748489062019,54.29851876,174.08,174.01,35.9]
[1748489062214,36.48,174.08,174.04,12.07371983]
[1748489062420,36.48,174.08,174.05,12.07371983]
[1748489062639,36.48,174.08,174.06,12.07371983]
[1748489063434,77.16666667,174.09,174.06,12.07371983]
[1748489063639,113.64666667,174.09,174.06,12.07371983]
[1748489063848,113.62666667,174.09,174.06,12.07371983]
[1748489064019,77.16666667,174.08,174.06,12.07371983]
[1748489064541,77.16666667,174.08,174.04,26.0]
[1748489064719,77.16666667,174.08,174.06,12.07371983]
[1748489065445,77.16666667,174.08,174.07,12.07371983]
[1748489065749,77.16666667,174.08,174.06,12.07371983]
[1748489069447,77.16666667,174.08,174.04,31.74565299]
[1748489069448,77.16666667,174.08,174.07,56.72336869]
[1748489069640,77.16666667,174.08,174.07,66.60336869]
[1748489069835,36.46,174.12,174.08,18.64964886]
[1748489070045,77.16666667,174.13,174.11,12.07371983]
[1748489070546,113.62666667,174.13,174.11,12.07371983]
[1748489070751,77.16666667,174.13,174.11,12.07371983]
[1748489070931,113.62666667,174.13,174.11,12.07371983]
[1748489071325,77.16666667,174.13,174.11,12.07371983]
[1748489071524,113.62666667,174.13,174.11,12.07371983]
[1748489072346,77.16666667,174.13,174.11,12.07371983]
[1748489072540,113.62666667,174.13,174.11,12.07371983]
[1748489072956,77.16666667,174.12,174.11,12.07371983]
[1748489077345,77.16666667,174.12,174.08,44.64964886]
[1748489077563,77.16666667,174.12,174.1,12.07371983]
[1748489077874,77.16666667,174.12,174.11,12.07371983]
[1748489078047,77.16666667,174.12,174.1,12.07371983]
[1748489078373,77.16666667,174.12,174.11,38.07371983]
[1748489078546,77.16666667,174.17,174.14,26.0]
[1748489078747,77.16666667,174.16,174.15,12.07371983]
[1748489078974,77.16666667,174.16,174.14,38.07371983]
[1748489079271,82.90854733,174.16,174.12,38.07371983]
[1748489079474,36.44,174.15,174.12,26.0]
[1748489079652,48.51371983,174.15,174.1,38.07371983]
[1748489079851,77.16666667,174.14,174.1,38.07371983]
[1748489081056,82.9094868,174.14,174.1,38.07371983]
[1748489081390,82.9094868,174.14,174.11,12.07371983]
[1748489081680,82.9094868,174.14,174.1,38.07371983]
[1748489083680,82.9094868,174.14,174.11,12.07371983]
[1748489084383,82.9094868,174.14,174.1,38.07371983]
[1748489084757,77.16666667,174.13,174.1,38.07371983]
[1748489085685,82.90957619,174.13,174.1,26.0]
[1748489085871,119.32957619,174.13,174.1,26.0]
[1748489086654,119.32957619,174.13,174.08,26.0]
[1748489086655,12.07371983,174.12,174.08,26.0]
[1748489086861,36.42,174.11,174.08,26.0]
[1748489087068,77.16666667,174.1,174.09,26.0]
[1748489087579,77.16666667,174.09,174.07,9.88]
[1748489087884,125.6603865,174.09,174.07,9.88]
[1748489088207,113.58666667,174.09,174.07,9.88]
[1748489089387,119.33105035,174.09,174.07,9.88]
[1748489089764,113.58666667,174.09,174.07,9.88]
[1748489091292,119.33088416,174.09,174.07,9.88]
[1748489093485,131.40460399,174.09,174.07,9.88]
[1748489094295,119.33088416,174.09,174.07,9.88]
[1748489096003,131.40460399,174.09,174.07,9.88]
[1748489096174,131.40460399,174.09,174.05,26.0]
[1748489096175,12.07371983,174.08,174.05,26.0]
[1748489096375,36.4,174.07,174.05,26.0]
[1748489096595,77.16666667,174.06,174.05,26.0]
[1748489098808,82.91181202,174.06,174.03,56.72336869]
[1748489099104,77.16666667,174.06,174.03,56.72336869]
[1748489100110,77.16666667,174.06,174.03,44.64964886]
[1748489100285,77.16666667,174.06,174.03,56.72336869]
[1748489100678,82.9119333,174.06,174.03,56.72336869]
[1748489102179,82.91183004,174.06,174.03,26.0]
[1748489102381,77.16666667,174.05,174.03,26.0]
[1748489102590,5.74580556,174.04,174.03,26.0]
[1748489105200,119.31221317,174.05,174.03,26.0]
[1748489105504,77.16666667,174.04,174.03,26.0]
[1748489107106,82.91247223,174.04,174.03,26.0]
[1748489107802,77.16666667,174.04,174.03,26.0]
[1748489108007,77.16666667,174.04,174.03,56.74652592]
[1748489108222,148.5,174.11,174.05,26.0]
[1748489108223,77.16666667,174.1,174.05,26.0]
[1748489108397,77.16666667,174.09,174.07,26.0]
[1748489108718,77.16666667,174.09,174.08,40.58652592]
[1748489108916,77.16666667,174.13,174.08,46.33073883]
[1748489109080,8.2154,174.17,174.12,12.09687706]
[1748489109081,13.95719715,174.17,174.12,12.09687706]
[1748489109283,13.95719715,174.17,174.13,12.09687706]
[1748489109585,48.78049715,174.17,174.13,12.09687706]
[1748489109783,85.38206667,174.21,174.15,12.09687706]
[1748489109992,36.4,174.2,174.15,12.09687706]
[1748489110196,48.49687706,174.2,174.15,12.09687706]
[1748489110397,48.49687706,174.19,174.14,21.93687706]
[1748489110798,5.74118727,174.18,174.14,21.93687706]
[1748489111901,5.74118727,174.18,174.15,12.09687706]
[1748489113215,17.83806433,174.18,174.14,9.84]
[1748489113689,5.74118727,174.18,174.14,9.84]
[1748489113887,17.83806433,174.18,174.14,9.84]
[1748489114396,77.16666667,174.17,174.14,9.84]
[1748489114599,77.16666667,174.16,174.14,9.84]
[1748489116402,77.16666667,174.16,174.14,21.93687706]
[1748489118227,77.16666667,174.16,174.15,12.09687706]
[1748489119099,36.36,174.19,174.15,12.09687706]
[1748489119313,36.36,174.19,174.16,12.09687706]
[1748489119514,77.16666667,174.2,174.16,12.09687706]
[1748489119822,113.52666667,174.2,174.16,12.09687706]
[1748489120133,119.26732952,174.2,174.16,12.09687706]
[1748489120316,82.90732952,174.2,174.16,12.09687706]
[1748489120835,119.26732952,174.2,174.16,12.09687706]
[1748489121738,131.36420658,174.2,174.15,12.09687706]
[1748489122108,12.09687706,174.19,174.14,21.93687706]
[1748489122321,5.74118727,174.18,174.14,21.93687706]
[1748489122733,17.83806433,174.18,174.14,9.84]
[1748489123327,77.16666667,174.17,174.14,9.84]
[1748489123826,77.16666667,174.17,174.14,21.93687706]
[1748489124427,77.16666667,174.17,174.15,12.09687706]
[1748489125114,82.90820364,174.17,174.15,12.09687706]
[1748489125310,77.16666667,174.17,174.15,12.09687706]
[1748489125530,82.90824403,174.17,174.15,12.09687706]
[1748489126045,77.16666667,174.17,174.15,12.09687706]
[1748489126292,77.16666667,174.24,174.17,26.0]
[1748489126546,82.90594984,174.24,174.22,12.09687706]
[1748489126744,77.16666667,174.24,174.22,12.09687706]
[1748489131368,77.16666667,174.24,174.23,12.09687706]
[1748489132377,77.16666667,174.24,174.22,12.09687706]
[1748489133746,77.16666667,174.24,174.22,14.99020204]
[1748489135350,82.90601893,174.24,174.22,12.09687706]
[1748489135545,82.90601893,174.24,174.21,38.09687706]
[1748489136134,82.90601893,174.24,174.21,26.0]
[1748489136337,131.32289599,174.24,174.2,2.83740027]
[1748489136549,131.32289599,174.24,174.19,47.89687706]
[1748489137363,12.09687706,174.22,174.19,35.8]
[1748489137585,36.32,174.22,174.19,35.8]
[1748489137787,48.41687706,174.22,174.19,9.8]
[1748489138157,12.09687706,174.21,174.19,9.8]
[1748489138461,48.41687706,174.2,174.14,9.8]
[1748489138773,12.09687706,174.17,174.14,9.8]
[1748489138959,48.41687706,174.18,174.14,9.8]
[1748489139380,17.83839396,174.17,174.14,9.8]
[1748489139971,12.09687706,174.15,174.14,9.8]
[1748489140859,17.83905334,174.15,174.14,9.8]
[1748489141059,5.74217628,174.15,174.14,9.8]
[1748489145667,5.74176453,174.17,174.14,9.8]
[1748489146272,17.83864159,174.17,174.14,9.8]
[1748489149881,77.16666667,174.16,174.14,9.8]
[1748489151391,82.90873072,174.16,174.14,9.8]
[1748489151594,95.00560778,174.16,174.14,9.8]
[1748489155289,89.26354373,174.16,174.14,9.8]
[1748489155466,77.16666667,174.16,174.14,9.8]
[1748489157396,77.16666667,174.18,174.15,12.09687706]
[1748489157577,77.16666667,174.18,174.16,12.09687706]
[1748489157908,77.16666667,174.18,174.15,12.09687706]
[1748489158203,77.16666667,174.18,174.16,12.09687706]
[1748489158378,77.16666667,174.2,174.16,21.89687706]
[1748489159981,95.00411654,174.2,174.16,9.8]
[1748489160920,12.09687706,174.19,174.16,9.8]
[1748489161718,95.004731,174.18,174.16,9.8]
[1748489162087,95.004731,174.18,174.14,35.78]
[1748489163526,77.16666667,174.18,174.17,26.0]
[1748489165316,77.16666667,174.18,174.17,43.83839396]
[1748489167010,77.16666667,174.18,174.17,62.48804282]
[1748489168206,77.16666667,174.18,174.17,56.74652592]
[1748489168401,77.16666667,174.18,174.17,38.09687706]
[1748489169103,77.16666667,174.18,174.17,43.83839396]
[1748489170003,77.16666667,174.18,174.17,62.48804282]
[1748489170632,77.16666667,174.22,174.17,62.48804282]
[1748489170838,77.16666667,174.22,174.19,12.09687706]
[1748489171532,77.16666667,174.21,174.19,12.09687706]
[1748489171704,77.16666667,174.21,174.17,50.39116576]
[1748489171705,77.16666667,174.21,174.2,26.0]
[1748489171904,196.87687706,174.23,174.2,26.0]
[1748489172433,196.87687706,174.23,174.17,62.48804282]
[1748489172618,12.09687706,174.2,174.17,26.0]
[1748489173706,17.83760558,174.2,174.17,26.0]
[1748489174132,12.09687706,174.18,174.14,9.78]
[1748489174301,89.5,174.17,174.16,26.0]
[1748489178018,89.5,174.17,174.14,9.78]
[1748489178212,89.5,174.17,174.14,35.78]
[1748489178735,89.5,174.17,174.14,47.87687706]
[1748489179441,89.5,174.16,174.14,53.61936293]
[1748489180144,89.5,174.16,174.14,47.87687706]
[1748489181151,89.5,174.22,174.18,26.0]
[1748489181362,36.26,174.24,174.21,38.09687706]
[1748489181511,13.34960521,174.26,174.22,12.09687706]
[1748489181711,49.60960521,174.26,174.22,12.09687706]
[1748489182244,13.34960521,174.26,174.22,12.09687706]
[1748489182436,49.60960521,174.26,174.22,12.09687706]
[1748489182647,6.0465,174.26,174.23,12.09687706]
[1748489182960,36.26,174.27,174.23,12.09687706]
[1748489183462,107.33481297,174.28,174.23,12.09687706]
[1748489183666,36.26,174.27,174.23,12.09687706]
[1748489184037,41.99848685,174.27,174.23,12.09687706]
[1748489188364,89.5,174.26,174.23,12.09687706]
[1748489189587,89.5,174.26,174.21,35.78]
[1748489189737,89.5,174.26,174.23,12.09687706]
[1748489192354,107.33552744,174.26,174.19,18.64964886]
[1748489192555,107.33552744,174.26,174.22,26.0]
[1748489192748,95.23865038,174.26,174.22,38.09687706]
[1748489192944,89.5,174.26,174.22,38.09687706]
[1748489193135,107.33545638,174.26,174.22,26.0]
[1748489193564,89.5,174.25,174.22,26.0]
[1748489193747,148.5,174.28,174.24,12.09687706]
[1748489194082,148.5,174.28,174.25,12.09687706]
[1748489194759,154.23789325,174.28,174.23,38.09687706]
[1748489194935,12.09687706,174.27,174.23,26.0]
[1748489195565,12.09687706,174.27,174.2,28.40964886]
[1748489195566,12.09687706,174.26,174.2,9.76]
[1748489195755,12.09687706,174.24,174.2,9.76]
[1748489195941,12.09687706,174.24,174.2,35.76]
[1748489196141,12.09687706,174.24,174.2,9.76]
[1748489196647,42.5762,174.25,174.2,47.85687706]
[1748489196867,54.67307706,174.25,174.2,47.85687706]
[1748489197049,12.09687706,174.24,174.2,35.76]
[1748489197369,17.83639001,174.24,174.2,35.76]
[1748489198280,5.73951295,174.24,174.2,47.85687706]
[1748489198589,89.5,174.23,174.22,12.09687706]
[1748489199153,89.5,174.26,174.22,12.09687706]
[1748489199458,89.5,174.26,174.23,38.09687706]
[1748489202382,89.5,174.26,174.24,12.09687706]
[1748489202688,89.5,174.26,174.25,12.09687706]
[1748489205374,89.5,174.26,174.25,26.0]
[1748489206294,95.23855158,174.26,174.23,26.0]
[1748489210189,107.33542864,174.26,174.23,26.0]
[1748489210396,12.09687706,174.24,174.2,9.76]
[1748489210606,12.09687706,174.23,174.2,9.76]
[1748489210887,12.09687706,174.21,174.15,104.43687706]
[1748489211104,125.72,174.2,174.15,104.43687706]
[1748489211298,125.72,174.2,174.16,12.09687706]
[1748489211966,131.46065533,174.2,174.16,12.09687706]
[1748489212975,131.46065533,174.2,174.15,104.43687706]
[1748489215997,143.55753239,174.2,174.15,104.43687706]
[1748489216377,17.83803772,174.19,174.15,92.34]
[1748489216578,5.74116066,174.19,174.15,92.34]
[1748489216799,17.83803772,174.19,174.15,92.34]
[1748489218800,12.09687706,174.16,174.15,9.76]
[1748489219880,17.83872363,174.16,174.15,9.76]
[1748489220986,5.74184657,174.16,174.15,9.76]
[1748489221677,36.22,174.18,174.15,9.76]
[1748489222275,190.46094095,174.19,174.15,21.85687706]
[1748489223017,184.72,174.19,174.15,21.85687706]
[1748489223600,190.46088927,174.19,174.15,21.85687706]
[1748489223799,154.24088927,174.19,174.15,9.76]
[1748489224001,154.24088927,174.19,174.15,21.85687706]
[1748489224804,148.5,174.19,174.16,12.09687706]
[1748489226588,148.5,174.19,174.15,9.76]
[1748489226787,148.5,174.19,174.16,12.09687706]
[1748489229494,148.5,174.19,174.15,21.85687706]
[1748489229996,148.5,174.19,174.16,12.09687706]
[1748489232117,148.5,174.19,174.15,21.85687706]
[1748489232292,154.24088168,174.19,174.15,21.85687706]
[1748489232682,12.09687706,174.17,174.15,9.76]
[1748489232904,12.09687706,174.18,174.15,9.76]
[1748489234005,5.74184657,174.16,174.15,9.76]
[1748489234318,17.83846906,174.17,174.15,9.76]
[1748489234523,5.741592,174.17,174.15,9.76]
[1748489235303,54.05814163,174.18,174.15,9.76]
[1748489235700,89.5,174.17,174.15,9.76]
[1748489240425,12.09687706,174.16,174.1,9.74]
[1748489240623,12.09687706,174.12,174.1,9.74]
[1748489240926,12.09687706,174.11,174.1,9.74]
[1748489241228,12.09687706,174.12,174.1,9.74]
[1748489241447,12.09687706,174.13,174.1,9.74]
[1748489243133,125.72,174.14,174.1,9.74]
[1748489243449,12.09687706,174.13,174.1,9.74]
[1748489244428,125.72,174.14,174.1,9.74]
[1748489244639,89.5,174.13,174.1,9.74]
[1748489244942,89.5,174.13,174.1,21.83687706]
[1748489245112,89.5,174.13,174.1,15.48377619]
[1748489245328,12.09687706,174.11,174.1,9.74]
[1748489245620,12.09687706,174.11,174.06,26.0]
[1748489245823,41.96253588,174.14,174.06,26.0]
[1748489245824,101.59687706,174.1,174.06,26.0]
[1748489246041,101.59687706,174.1,174.05,92.34]
[1748489246341,89.5,174.1,174.05,104.43687706]
[1748489246633,101.59687706,174.1,174.05,104.43687706]
[1748489247419,101.59687706,174.1,174.05,110.1822774]
[1748489247736,89.5,174.1,174.05,110.1822774]
[1748489247940,101.59687706,174.1,174.05,110.1822774]
[1748489248441,101.59687706,174.1,174.05,113.04697022]
[1748489250530,89.5,174.09,174.05,113.04697022]
[1748489251029,89.5,174.09,174.07,12.09687706]
[1748489253138,89.5,174.09,174.07,17.84155926]
[1748489256423,89.5,174.08,174.07,5.7446822]
[1748489256627,89.5,174.08,174.07,43.84155926]
[1748489256823,89.5,174.08,174.07,62.49120812]
[1748489258722,89.5,174.08,174.07,36.49120812]
[1748489260729,89.5,174.08,174.07,36.63336969]
[1748489261830,89.5,174.12,174.1,26.0]
[1748489262034,89.5,174.11,174.1,44.64964886]
[1748489262226,89.5,174.11,174.1,66.54652592]
[1748489262623,89.5,174.11,174.1,72.2903513]
[1748489264122,89.5,174.15,174.11,18.64964886]
[1748489264343,89.5,174.15,174.14,38.09687706]
[1748489264655,89.5,174.15,174.14,43.83938308]
[1748489267425,89.5,174.15,174.14,62.48903194]
[1748489274564,89.5,174.15,174.14,38.09687706]
[1748489274768,89.5,174.15,174.14,26.0]
[1748489275063,89.5,174.14,174.11,9.8]
[1748489275372,125.72,174.14,174.11,9.8]
[1748489275738,132.1909,174.14,174.11,9.8]
[1748489279767,132.1909,174.14,174.11,21.89687706]
[1748489280163,89.5,174.13,174.11,21.89687706]
[1748489280568,89.5,174.13,174.11,9.8]
[1748489284182,95.24287178,174.13,174.11,9.8]
[1748489284555,89.5,174.13,174.11,9.8]
[1748489285251,95.24292208,174.13,174.11,9.8]
[1748489285779,89.5,174.13,174.11,21.89687706]
[1748489286086,89.5,174.12,174.11,21.89687706]
[1748489290381,89.5,174.12,174.11,9.8]
[1748489290585,89.5,174.12,174.11,21.89687706]
[1748489290780,89.5,174.12,174.11,9.8]
[1748489291992,48.31687706,174.15,174.11,9.8]
[1748489294280,48.31687706,174.15,174.11,15.54338765]
[1748489294784,48.31687706,174.15,174.11,9.8]
[1748489295566,36.22,174.15,174.11,21.89687706]
[1748489296786,54.05932222,174.15,174.11,9.8]
[1748489297087,55.60162222,174.15,174.11,9.8]
[1748489297869,12.09687706,174.14,174.11,9.8]
[1748489298271,5.74283581,174.13,174.11,9.8]
[1748489298598,17.83971287,174.13,174.11,9.8]
[1748489299098,5.74283581,174.13,174.11,9.8]
[1748489299297,17.83971287,174.13,174.11,9.8]
[1748489300167,43.50480307,174.15,174.11,21.89687706]
[1748489301996,43.50480307,174.15,174.11,12.09687706]
[1748489304597,55.60168013,174.15,174.1,21.83687706]
[1748489305098,89.5,174.11,174.1,21.83687706]
[1748489305295,55.60168013,174.15,174.1,21.83687706]
[1748489305999,49.85917706,174.15,174.1,27.58067351]
[1748489306196,148.5,174.18,174.14,12.09687706]
[1748489307198,166.33808466,174.18,174.13,12.09687706]
[1748489308098,160.59687706,174.18,174.13,12.09687706]
[1748489308602,160.59687706,174.18,174.14,9.74]
[1748489308785,148.5,174.18,174.14,21.83687706]
[1748489309698,89.5,174.17,174.15,12.09687706]
[1748489314630,89.5,174.17,174.14,9.74]
[1748489315603,89.5,174.16,174.14,9.74]
[1748489315802,89.5,174.16,174.14,21.83687706]
[1748489321496,89.5,174.15,174.14,21.83687706]
[1748489321884,89.5,174.15,174.14,17.47124691]
[1748489322390,89.5,174.15,174.14,23.21375293]
[1748489327422,148.5,174.18,174.14,23.21375293]
[1748489327801,148.5,174.18,174.14,17.47124691]
[1748489331406,148.5,174.18,174.14,23.21373774]
[1748489332846,148.5,174.18,174.14,15.48249083]
[1748489333019,148.5,174.18,174.14,23.21373774]
[1748489336427,89.5,174.17,174.14,23.21373774]
[1748489341418,89.5,174.17,174.14,15.48249083]
[1748489341734,148.5,174.18,174.16,7.73124691]
[1748489341947,148.5,174.18,174.17,7.73124691]
[1748489345429,148.5,174.22,174.17,7.73124691]
[1748489345615,154.23994982,174.22,174.19,7.73124691]
[1748489345816,36.18,174.21,174.19,7.73124691]
[1748489346641,148.5,174.22,174.2,7.73124691]
[1748489346818,148.5,174.22,174.21,7.73124691]
[1748489351144,89.5,174.21,174.13,17.45124691]
[1748489351440,7.73124691,174.18,174.13,17.45124691]
[1748489351618,36.16,174.17,174.13,43.45124691]
[1748489351824,89.5,174.16,174.13,43.45124691]
[1748489352052,89.5,174.16,174.13,9.72]
[1748489352263,5.74217628,174.15,174.13,9.72]
[1748489352424,89.5,174.14,174.13,9.72]
[1748489353361,89.5,174.14,174.13,17.45124691]
[1748489353928,89.5,174.14,174.13,21.80141041]
[1748489358743,89.5,174.14,174.13,9.72]
[1748489359147,95.24250602,174.14,174.13,9.72]
[1748489361048,5.74250602,174.14,174.13,9.72]
[1748489361252,17.82391643,174.14,174.13,9.72]
[1748489361431,5.74250602,174.14,174.13,9.72]
[1748489366839,17.82391643,174.14,174.13,9.72]
[1748489368042,17.82391643,174.14,174.13,8.91061068]
[1748489376059,5.74250602,174.14,174.13,8.91061068]
[1748489379049,5.74250602,174.14,174.1,7.73503107]
[1748489379458,5.74250602,174.14,174.09,35.7]
[1748489379656,5.74250602,174.14,174.1,7.73503107]
[1748489379860,13.47753709,174.14,174.09,43.43503107]
[1748489381974,13.47753709,174.14,174.09,35.7]
[1748489382155,13.47753709,174.14,174.09,43.43503107]
[1748489383746,5.74316563,174.12,174.09,43.43503107]
[1748489386587,5.74316563,174.12,174.1,7.73503107]
[1748489387661,5.74316563,174.12,174.09,43.43503107]
[1748489388055,5.74316563,174.12,174.01,84.226]
[1748489388056,89.5,174.08,174.01,84.226]
[1748489388260,274.16,174.07,174.06,7.73503107]
[1748489388555,148.5,174.07,174.05,33.73503107]
[1748489388750,148.5,174.07,174.05,26.0]
[1748489388974,7.73503107,174.06,174.02,9.7]
[1748489389154,89.5,174.05,174.02,9.7]
[1748489389352,89.5,174.05,174.02,17.43503107]
[1748489389573,125.64,174.05,174.02,17.43503107]
[1748489389777,125.64,174.05,174.03,7.73503107]
[1748489389971,125.64,174.05,174.03,12.09507653]
[1748489390385,125.64,174.05,174.02,9.7]
[1748489390386,89.5,174.05,174.04,12.09507653]
[1748489391563,89.5,174.05,174.04,30.74472539]
[1748489391958,89.5,174.05,174.04,62.49053095]
[1748489400288,89.5,174.08,174.07,26.0]
[1748489400491,89.5,174.08,174.07,66.44472539]
[1748489400976,89.5,174.07,174.03,2.89004494]
[1748489401181,125.64,174.06,174.01,21.79507653]
[1748489401495,12.09507653,174.05,174.01,9.7]
[1748489401657,12.09507653,174.02,174.01,9.7]
[1748489401855,48.23507653,174.02,174.01,9.7]
[1748489402084,49.77667653,174.02,173.97,82.66]
[1748489402270,12.09507653,174.0,173.96,9.7]
[1748489402466,48.23507653,173.99,173.96,9.7]
[1748489402671,48.23507653,173.98,173.96,9.7]
[1748489402878,48.23507653,173.97,173.96,9.7]
[1748489403193,48.3772381,173.97,173.92,12.09507653]
[1748489403358,5.74844791,173.96,173.92,14.92140689]
[1748489403560,5.74844791,173.96,173.91,9.7]
[1748489403561,36.14,173.95,173.91,21.79507653]
[1748489404059,36.14,173.97,173.94,38.09507653]
[1748489404282,36.14,173.98,173.96,12.09507653]
[1748489404584,36.14,173.98,173.97,12.09507653]
[1748489405587,36.14,174.0,173.97,21.79507653]
[1748489405965,91.0416,174.02,173.97,27.54312355]
[1748489406166,36.14,174.01,173.97,27.54312355]
[1748489407577,36.14,174.01,173.98,12.09507653]
[1748489408278,89.5,174.0,173.98,12.09507653]
[1748489408871,89.5,174.0,173.99,12.09507653]
[1748489409589,89.5,174.0,173.99,17.84253328]
[1748489419210,89.5,174.0,173.99,62.49218214]
[1748489419572,89.5,174.03,173.99,48.58725867]
[1748489419792,89.5,174.03,174.02,38.09507653]